fUSD/lending_fUSD_20240719
["ID","MTS","AMOUNT","RATE_DAILY","PERIOD"]
[332618001,1721356069460,-2000.0,0.000118,2]
[332618002,1721356070115,-2000.0,0.000118,2]
[332618003,1721356085037,-150.0,0.000118,2]
[332618018,1721356231752,-347.84506188,0.00011384,2]
[332618019,1721356231762,-155.32839312,0.00011384,2]
[332618020,1721356231772,-7003.17368105,0.000118,2]
[332618021,1721356231781,-179.873532,0.000118,2]
[332618023,1721356231790,-422.83,0.00012156,2]
[332618025,1721356231801,-3777.76770061,0.0001251,2]
[332618027,1721356231811,-3493.28901951,0.00013,2]
[332618029,1721356231821,-1941.0,0.00013314,2]
[332618031,1721356231830,-1418.60140405,0.0001358,2]
[332618033,1721356231839,-214.29814693,0.0001369,2]
[332618035,1721356231848,-1522.1012,0.0001369,2]
[332618036,1721356231857,-211.3203,0.0001369,2]
[332618037,1721356231867,-192.378,0.0001369,2]
[332618038,1721356231877,-1805.57707745,0.0001369,2]
[332618039,1721356231889,-455.49042255,0.0001369,2]
[332618040,1721356231899,-150.0,0.00013698,2]
[332618041,1721356231908,-3596.94,0.00013699,2]
[332618042,1721356231917,-1679.6,0.00013699,2]
[332618043,1721356231927,-250.0,0.00013699,2]
[332618044,1721356231936,-559.64,0.00013699,2]
[332618045,1721356231946,-531.57,0.00013762,2]
[332618046,1721356231955,-320.32,0.0001378,3]
[332618047,1721356231964,-983.84780768,0.0001379,2]
[332618048,1721356231973,-1000.0,0.0001379,2]
[332618049,1721356231983,-89101.0214,0.0001379,2]
[332618050,1721356231992,-245000.0,0.0001379,2]
[332618051,1721356232002,-150.99,0.0001379,2]
[332618052,1721356232012,-499.99,0.00013799,2]
[332618053,1721356232021,-159.39780786,0.00013799,2]
[332618054,1721356232031,-12849.5543664,0.000138,2]
[332618055,1721356232040,-523.32,0.000138,2]
[332618056,1721356232050,-1117.20969897,0.000138,2]
[332618057,1721356232060,-1489.61293196,0.0001387,2]
[332618058,1721356232069,-80305.70880152,0.0001388,2]
[332618059,1721356232078,-573.42847698,0.00013896,2]
[332618060,1721356232087,-372.40323299,0.00013989,2]
[332618061,1721356232097,-744.80646598,0.0001399,2]
[332618062,1721356232106,-154.6,0.0001399,2]
[332618063,1721356232115,-202.36261918,0.0001399,2]
[332618064,1721356232124,-500.0,0.00013999,2]
[332618065,1721356232135,-537.18778041,0.00013999,2]
[332618066,1721356232144,-500.0,0.00013999,2]
[332618067,1721356232153,-1541.52093996,0.00013999,2]
[332618068,1721356232162,-638858.97202514,0.00014,2]
[332618069,1721356232695,-1047.0,0.00014,2]
[332618070,1721356232706,-899.99,0.00014,2]
[332618071,1721356232719,-482.77585744,0.00014,2]
[332618072,1721356232814,-992.484,0.00014,2]
[332618073,1721356232825,-6573.67688453,0.00014,2]
[332618074,1721356232939,-74306.44951849,0.00014,2]
[332618075,1721356232951,-1047.7158435,0.00014,2]
[332618076,1721356233060,-589.14706,0.00014,2]
[332618077,1721356233071,-1000.0,0.00014,2]
[332618092,1721356237882,-667.76472037,0.00014,2]
[332618093,1721356237894,-326.82220256,0.00014,2]
[332618094,1721356237906,-655.82000289,0.00014,2]
[332618095,1721356237917,-110530.1709903,0.00014,2]
[332618096,1721356237929,-296.71721676,0.00014,2]
[332618097,1721356237940,-1072.50233623,0.00014,2]
[332618098,1721356237952,-7015.537408,0.00014,2]
[332618099,1721356237964,-1969.22712928,0.00014,2]
[332618100,1721356237975,-4795.42269386,0.00014,2]
[332618101,1721356237987,-1654.53650654,0.00014,2]
[332618102,1721356238236,-428001.36364123,0.00014,2]
[332618161,1721356239885,-9936.64721578,0.00014,2]
[332618163,1721356239899,-722.24115992,0.00014,2]
[332618165,1721356239910,-938.35073009,0.00014,2]
[332618167,1721356239921,-3210.81251125,0.00014,2]
[332618169,1721356239934,-850.24946448,0.00014,2]
[332618187,1721356240271,-12945.27415203,0.00014,2]
[332618585,1721356243748,-482.00237009,0.00014,2]
[332618589,1721356243761,-31445.4474969,0.00014,2]
[332618594,1721356243788,-2396.5336603,0.00014,2]
[332618598,1721356243800,-305.20127118,0.00014,2]
[332618601,1721356243813,-552179.30188689,0.00014,2]
[332618604,1721356243823,-196.10308055,0.00014043,2]
[332618607,1721356243832,-204.00431831,0.00014043,2]
[332618610,1721356243841,-187.57,0.00014143,2]
[332618613,1721356243851,-150.0,0.00014281,2]
[332618616,1721356243860,-156.09600928,0.00014283,2]
[332618619,1721356243869,-7029.17956273,0.00014303,2]
[332618622,1721356243878,-155.56229109,0.00014303,2]
[332618625,1721356243887,-422.83,0.0001442,2]
[332618628,1721356243900,-154.6,0.00014481,2]
[332618631,1721356243910,-983.84780763,0.00014491,2]
[332618634,1721356243919,-23900.0,0.00014545,2]
[332618637,1721356243931,-255.0,0.00014821,2]
[332618640,1721356243940,-159.39780785,0.00014892,2]
[332618643,1721356243949,-983.84780763,0.00015292,2]
[332618645,1721356243959,-983.84780763,0.00016093,2]
[332618648,1721356243968,-159.39780785,0.00016093,2]
[332618651,1721356243978,-941.09333685,0.00016232,2]
[332618654,1721356243987,-422.83,0.00016684,2]
[332618657,1721356243996,-983.84780763,0.00016894,2]
[332618660,1721356244005,-170.89,0.0001711,2]
[332618663,1721356244015,-10031.17,0.0001713,2]
[332618666,1721356244024,-250.0,0.00017228,2]
[332618669,1721356244033,-1913.85,0.00017245,2]
[332618672,1721356244042,-228.35,0.00017292,2]
[332618675,1721356244051,-159.39780785,0.00017295,2]
[332618678,1721356244060,-453.42,0.0001732,2]
[332618681,1721356244070,-215.94,0.00017368,2]
[332618684,1721356244079,-200.0,0.0001737,2]
[332618687,1721356244088,-294.65,0.00017408,2]
[332618688,1721356244098,-196.10308055,0.00017471,2]
[332618691,1721356244107,-983.84780763,0.00017696,2]
[332618694,1721356244116,-178.66,0.00017748,2]
[332618697,1721356244126,-2378.69,0.00018081,2]
[332618700,1721356244135,-549.0,0.00018081,2]
[332618702,1721356244145,-1521.181,0.00018081,2]
[332618704,1721356244154,-4038.344,0.00018081,2]
[332618706,1721356244163,-5209.504,0.00018081,2]
[332618708,1721356244172,-38329.0,0.00018081,2]
[332618710,1721356244181,-1076.523,0.00018081,2]
[332618712,1721356244190,-445.0,0.00018081,2]
[332618714,1721356244199,-620.0,0.00018081,2]
[332618716,1721356244208,-5000.0,0.00018081,2]
[332618718,1721356244217,-155.22005453,0.00018471,2]
[332618720,1721356244226,-983.84780763,0.00018497,2]
[332618721,1721356244235,-159.39780785,0.00018497,2]
[332618723,1721356244244,-1075.17774009,0.00018547,2]
[332618725,1721356244253,-4479.18095635,0.00018547,2]
[332618727,1721356244262,-203.19213464,0.00018599,2]
[332618729,1721356244271,-101836.19407802,0.0001878,2]
[332618731,1721356244281,-159.01791684,0.00018898,2]
[332618733,1721356244290,-155.0,0.00018898,2]
[332618735,1721356244299,-422.83,0.00018948,2]
[332618737,1721356244308,-300.0,0.00018999,2]
[332618739,1721356244317,-2836.27119064,0.00019176,2]
[332618741,1721356244328,-264.01138041,0.00019177,2]
[332618743,1721356244338,-559.64,0.00019178,2]
[332618745,1721356244348,-155.0,0.0001924,2]
[332618747,1721356244358,-746.16,0.00019286,2]
[332618749,1721356244368,-983.84780763,0.00019298,2]
[332618751,1721356244377,-169.82775733,0.00019398,2]
[332618753,1721356244386,-240.2471675,0.00019398,2]
[332618755,1721356244396,-218.74406149,0.00019398,2]
[332618757,1721356244405,-215.94,0.00019539,2]
[332618759,1721356244414,-294.65,0.00019584,2]
[332618761,1721356244424,-321.92329226,0.00019599,2]
[332618763,1721356244433,-235.93478657,0.00019599,2]
[332618765,1721356244443,-1110.07561486,0.000196,2]
[332618767,1721356244453,-159.39780785,0.00019698,2]
[332618769,1721356244462,-256.90014077,0.00019725,2]
[332618771,1721356244473,-571.59981827,0.00019725,2]
[332618773,1721356244482,-482.50931916,0.00019899,2]
[332618775,1721356244491,-155.17455973,0.00019899,2]
[332618777,1721356244500,-243.34571443,0.00019999,2]
[332618778,1721356244509,-500.0,0.0002,2]
[332618780,1721356244518,-500.0,0.0002,2]
[332618782,1721356244527,-500.0,0.0002,2]
[332618784,1721356244538,-500.0,0.0002,2]
[332618786,1721356244547,-500.0,0.0002,2]
[332618788,1721356244557,-864.36984213,0.0002,2]
[332618790,1721356244566,-155.03127286,0.0002,2]
[332618792,1721356244576,-1000.0,0.0002,2]
[332618794,1721356244585,-418.85,0.00020055,2]
[332618796,1721356244594,-983.84780763,0.00020099,2]
[332618798,1721356244603,-155.34031735,0.00020109,2]
[332618799,1721356244612,-164.092104,0.00020109,2]
[332618801,1721356244622,-655.4543612,0.00020191,2]
[332618803,1721356244632,-253.92596233,0.00020191,2]
[332618805,1721356244641,-225.0,0.000203,2]
[332618807,1721356244652,-356.0,0.000203,2]
[332618809,1721356244662,-1000.0,0.000203,2]
[332618810,1721356244671,-277.34033653,0.00020575,2]
[332618812,1721356244681,-703.21270405,0.00020685,2]
[332618814,1721356244690,-1698.98042,0.0002079,2]
[332618816,1721356244700,-500.0,0.00020831,2]
[332618818,1721356244709,-500.0,0.00020832,2]
[332618820,1721356244719,-500.0,0.00020832,2]
[332618822,1721356244732,-200.0,0.00020832,2]
[332618824,1721356244741,-196.10308055,0.00020899,2]
[332618826,1721356244750,-222.17631936,0.000209,2]
[332618828,1721356244759,-3405.54299994,0.000209,2]
[332618830,1721356244770,-176.47777742,0.000209,2]
[332618832,1721356244779,-983.84780763,0.000209,2]
[332618834,1721356244788,-5800.0,0.000209,2]
[332618836,1721356244798,-159.39780785,0.000209,2]
[332618838,1721356244809,-214.29814693,0.000209,2]
[332618840,1721356244820,-60165.35598464,0.00020987,2]
[332618842,1721356244829,-416.306968,0.0002099,2]
[332618843,1721356244839,-416.306968,0.0002099,2]
[332618844,1721356244848,-151.0,0.0002099,2]
[332618845,1721356244857,-151.0,0.0002099,2]
[332618846,1721356244866,-154.6,0.0002099,2]
[332618847,1721356244876,-154.6,0.0002099,2]
[332618848,1721356244886,-154.6,0.0002099,2]
[332618849,1721356244896,-5938.62489471,0.00020999,2]
[332618850,1721356244906,-210.31799005,0.00020999,2]
[332618851,1721356244917,-500.18682873,0.00020999,2]
[332618852,1721356244927,-629.7672222,0.00020999,2]
[332618853,1721356244937,-54662.6143027,0.00020999,2]
[332618854,1721356244947,-920.702401,0.00020999,2]
[332618855,1721356244957,-439.9323303,0.00020999,2]
[332618856,1721356244966,-987.8801831,0.00020999,2]
[332618857,1721356244977,-525.2500057,0.00020999,2]
[332618858,1721356244986,-1673.2421155,0.00020999,2]
[332618859,1721356244996,-611.0,0.00021,2]
[332618860,1721356245006,-309742.8869603,0.00021,2]
[332618861,1721356245018,-4266.05698693,0.00021,2]
[332618862,1721356245030,-617.48620966,0.00021,2]
[332618863,1721356245042,-395.04330271,0.00021,2]
[332618864,1721356245053,-1093.93961604,0.00021,2]
[332618865,1721356245064,-392.29490377,0.00021,2]
[332618866,1721356245075,-585.97206265,0.00021,2]
[332618867,1721356245086,-636.87818,0.00021,2]
[332618868,1721356246126,-155.29047315,0.00014303,2]
[332618869,1721356246136,-719.89,0.00020989,3]
[332618870,1721356246147,-6664.63948009,0.00021,2]
[332618873,1721356246159,-500.0,0.00021,2]
[332618875,1721356246170,-1563.91,0.00021,2]
[332618877,1721356246182,-1595.25934319,0.00021,2]
[332618879,1721356246193,-16994.01969472,0.00021,2]
[332618881,1721356246204,-3278.93484286,0.00021,2]
[332618883,1721356246216,-865.4224377,0.00021,2]
[332618902,1721356246572,-42276.27372598,0.00021,2]
[332618903,1721356246584,-3569.3587808,0.00021,2]
[332618904,1721356246597,-27466.2388339,0.00021,2]
[332618905,1721356246608,-655338.87323881,0.00021,2]
[332618906,1721356246674,-269.38241397,0.00021,2]
[332618907,1721356246686,-572.85,0.00021,2]
[332618938,1721356288260,375.0,0.00025,120]
[332618943,1721357432184,-527.322701,0.0001331,2]
[332618944,1721357432196,-2308.94848964,0.0001331,2]
[332618945,1721357432205,-710.01018408,0.00013371,2]
[332618946,1721357432216,-263.744,0.00013371,2]
[332618947,1721357432227,-1320.24581592,0.00013371,2]
[332618948,1721357432237,-162.14215493,0.00013471,2]
[332618949,1721357432247,-445.33372627,0.00013579,2]
[332618950,1721357432257,-334.53393212,0.00013648,2]
[332618951,1721357432270,-45.16070706,0.00013648,2]
[332618952,1721357432280,-202.83879219,0.0001367,2]
[332618953,1721357432289,-155.09660897,0.0001367,2]
[332618954,1721357432298,-5933.54952468,0.0001367,2]
[332618955,1721357432310,-999.78872132,0.0001367,2]
[332618956,1721357432321,-2700.0,0.0001367,2]
[332618957,1721357432332,-1105.63031946,0.0001367,2]
[332618958,1721357432344,-463.52596664,0.0001367,2]
[332618959,1721357432355,-3188.46294561,0.0001367,2]
[332618961,1721357432366,-15904.46523953,0.0001367,2]
[332618963,1721357432376,-150.0,0.00013671,2]
[332618965,1721357432385,-150.0,0.00013689,2]
[332618967,1721357432395,-156.16612057,0.0001369,2]
[332618968,1721357432436,-0.26937943,0.0001369,2]
[332618969,1721357432446,-1028.52062057,0.0001369,2]
[332618970,1721357432457,-4207.06363913,0.0001369,2]
[332618971,1721357432467,-1758.1320022,0.0001369,2]
[332618972,1721357432478,-412.81053676,0.0001369,2]
[332618973,1721357432489,-2015.29501095,0.0001369,2]
[332618974,1721357432500,-635.7745886,0.0001369,2]
[332618975,1721357432511,-7604.47297998,0.0001369,2]
[332618976,1721357432522,-4453.55193141,0.0001369,2]
[332618977,1721357432533,-17424.7073904,0.0001369,2]
[332618978,1721357432542,-4357.82579878,0.0001369,2]
[332618983,1721357438290,-202.83879219,0.00013648,2]
[332618984,1721357438300,-473.69232682,0.0001369,2]
[332618985,1721357438312,-17950.92851653,0.0001369,2]
[332618986,1721357438323,-3453.15224832,0.0001369,2]
[332618987,1721357438335,-709.05400955,0.0001369,2]
[332618988,1721357438344,-155.0,0.00013698,2]
[332618989,1721357438354,-155.0,0.00013699,2]
[332618990,1721357438364,-300.0,0.00013699,2]
[332618991,1721357438374,-235.93478657,0.00013699,2]
[332618992,1721357438383,-164.092104,0.00013699,2]
[332618993,1721357438393,-6818.10910016,0.00013799,2]
[332618994,1721357438405,-688.5,0.00013799,2]
[332618995,1721357438416,-587.05089984,0.00013799,2]
[332618996,1721357438426,-2654.94910034,0.00013899,2]
[332618997,1721357438438,-394.12782113,0.00013899,2]
[332618998,1721357438450,-801.57371159,0.00013899,2]
[332618999,1721357438462,-396.62936694,0.00013899,2]
[332619000,1721357438472,-299.99,0.00013899,2]
[332619001,1721357438481,-18.04276506,0.00014812,2]
[332619002,1721357438492,-236.95723494,0.00014812,2]
[332619003,1721357438502,-150.0,0.00015,2]
[332619004,1721357438511,-323.99301506,0.0001603,2]
[332619005,1721357438523,-109.00698494,0.0001603,2]
[332619006,1721357438532,-289.64129524,0.000163,2]
[332619007,1721357438544,-382.35870476,0.000163,2]
[332619009,1721357438553,-381.49,0.00016779,2]
[332619011,1721357438563,-1473.90533964,0.00017,2]
[332619013,1721357438573,-200.0,0.00017,2]
[332619015,1721357438582,-279.82,0.00017197,2]
[332619017,1721357438592,-250.0,0.00017269,2]
[332619018,1721357438601,-185.0,0.00017344,2]
[332619020,1721357438611,-250.0,0.00017356,2]
[332619022,1721357438620,-6468.81958459,0.00017463,2]
[332619025,1721357438632,-2821.35211378,0.00017463,2]
[332619027,1721357438643,-1847.439928,0.00017463,2]
[332619029,1721357438657,-12561.75106199,0.00017463,2]
[332619036,1721357438718,-200.63731164,0.00017463,2]
[332619038,1721357438728,-384.7808966,0.00017566,2]
[332619040,1721357438739,-591.33045665,0.00017566,2]
[332619042,1721357438751,-999.39268,0.00017566,2]
[332619045,1721357438762,-8055.66596675,0.00017566,2]
[332619047,1721357438772,-228.35,0.0001773,2]
[332619049,1721357438782,-941.09333685,0.00017739,2]
[332619050,1721357438791,-1000.0,0.0001779,2]
[332619052,1721357438801,-5000.0,0.00018081,2]
[332619054,1721357438811,-150.0,0.00018155,2]
[332619056,1721357438821,-200.0,0.00018208,2]
[332619058,1721357438830,-171.47,0.00018384,2]
[332619060,1721357438840,-161.95,0.00018453,2]
[332619062,1721357438849,-212.36960913,0.00018581,2]
[332619064,1721357438859,-599.45440102,0.000186,2]
[332619066,1721357438868,-16965.018,0.0001868,2]
[332619068,1721357438878,-2312.44255866,0.00018681,2]
[332619070,1721357438890,-187.55744134,0.00018681,2]
[332619072,1721357438899,-1027.62035678,0.00018681,2]
[332619074,1721357438908,-170.89,0.00018708,2]
[332619076,1721357438918,-453.42,0.00018723,2]
[332619078,1721357438927,-1913.85,0.00018742,2]
[332619080,1721357438936,-1668.642,0.00018781,2]
[332619082,1721357438947,-362.99,0.00018781,2]
[332619084,1721357438956,-1257.712,0.00018781,2]
[332619086,1721357438965,-1837.224,0.00018781,2]
[332619088,1721357438975,-596.741,0.00018781,2]
[332619090,1721357438984,-445.0,0.00018781,2]
[332619092,1721357438993,-809.0,0.00018781,2]
[332619094,1721357439003,-620.0,0.00018781,2]
[332619096,1721357439012,-150.0,0.00018781,2]
[332619098,1721357439021,-2258.97120574,0.00018781,2]
[332619100,1721357439034,-122.02879426,0.00018781,2]
[332619103,1721357439248,-337.05837231,0.00018781,2]
[332619104,1721357439285,-211.94162769,0.00018781,2]
[332619105,1721357439295,-150.261,0.00018781,2]
[332619106,1721357439305,-159.24733131,0.00018781,2]
[332619107,1721357439316,-1830.75266869,0.00018781,2]
[332619108,1721357439325,-3281.0,0.00018781,2]
[332619109,1721357439335,-2195.27127919,0.00018781,2]
[332619132,1721357440373,-574.9101139,0.00018781,2]
[332619133,1721357440385,-455.07799912,0.00018781,2]
[332619134,1721357440396,-594.155,0.00018781,2]
[332619135,1721357440408,-1192.0,0.00018781,2]
[332619136,1721357440419,-106.58560779,0.00018781,2]
[332619137,1721357440429,-296.8845192,0.00018781,2]
[332619138,1721357440440,-350.6537154,0.00018781,2]
[332619139,1721357440452,-3981.85142367,0.00018781,2]
[332619140,1721357440463,-1194.61034173,0.00018781,2]
[332619141,1721357440473,-1200.0,0.00018781,2]
[332619142,1721357440482,-38329.0,0.00018781,2]
[332619143,1721357440492,-1666.0,0.00018781,2]
[332619144,1721357440501,-150.366,0.00018781,2]
[332619145,1721357440510,-1076.523,0.00018781,2]
[332619146,1721357440519,-212.36960906,0.00018839,2]
[332619147,1721357440530,-1027.6203567,0.00018928,2]
[332619148,1721357440539,-250.0,0.00019,2]
[332619149,1721357440549,-381.49,0.00019043,2]
[332619150,1721357440558,-212.36960906,0.00019096,2]
[332619151,1721357440567,-1027.6203567,0.00019174,2]
[332619153,1721357440577,-168.47,0.00019178,2]
[332619155,1721357440587,-178.66,0.00019276,2]
[332619157,1721357440596,-171.47,0.00019303,2]
[332619159,1721357440605,-212.36960906,0.00019354,2]
[332619161,1721357440615,-1027.6203567,0.00019421,2]
[332619163,1721357440624,-212.36960906,0.00019612,2]
[332619165,1721357440634,-1027.6203567,0.00019667,2]
[332619167,1721357440644,-212.36960906,0.00019869,2]
[332619169,1721357440654,-1027.6203567,0.00019914,2]
[332619171,1721357440663,-500.0,0.0002,2]
[332619173,1721357440673,-500.0,0.0002,2]
[332619175,1721357440683,-500.0,0.0002,2]
[332619177,1721357440692,-500.0,0.0002,2]
[332619179,1721357440703,-500.0,0.0002,2]
[332619181,1721357440712,-1000.0,0.00020014,2]
[332619183,1721357440722,-418.85,0.00020055,2]
[332619185,1721357440731,-212.36960906,0.00020127,2]
[332619187,1721357440741,-1027.6203567,0.0002016,2]
[332619189,1721357440751,-150.0,0.00020192,2]
[332619191,1721357440761,-150.0,0.00020192,2]
[332619192,1721357440771,-150.0,0.00020192,2]
[332619194,1721357440780,-150.0,0.00020192,2]
[332619196,1721357440790,-800.0,0.000202,7]
[332619198,1721357440800,-171.47,0.00020222,2]
[332619200,1721357440810,-1600.0,0.000203,7]
[332619202,1721357440819,-212.36960906,0.00020385,2]
[332619204,1721357440828,-2500.0,0.000204,7]
[332619206,1721357440838,-1027.6203567,0.00020407,2]
[332619208,1721357440847,-3300.0,0.000205,7]
[332619210,1721357440856,-1070.17583743,0.0002058,2]
[332619212,1721357440866,-422.61789368,0.000206,7]
[332619214,1721357440879,-3677.38210632,0.000206,7]
[332619216,1721357440889,-212.36960906,0.00020642,2]
[332619218,1721357440898,-1027.6203567,0.00020653,2]
[332619220,1721357440908,-703.21270405,0.00020685,2]
[332619222,1721357440917,-150.0,0.00020691,2]
[332619224,1721357440927,-225.0,0.000207,2]
[332619226,1721357440936,-800.0,0.000207,7]
[332619228,1721357440945,-214.29814693,0.000207,2]
[332619230,1721357440956,-356.0,0.000207,2]
[332619232,1721357440966,-1000.0,0.000207,2]
[332619235,1721357440975,-150.0,0.00020727,2]
[332619237,1721357440985,-231.38350399,0.00020727,2]
[332619239,1721357440995,-150.0,0.00020728,2]
[332619241,1721357441004,-150.0,0.00020733,2]
[332619243,1721357441013,-150.0,0.00020741,2]
[332619245,1721357441022,-150.0,0.00020742,2]
[332619247,1721357441032,-300.0,0.00020742,2]
[332619249,1721357441041,-150.0,0.00020743,2]
[332619251,1721357441050,-1500.0,0.00020745,2]
[332619253,1721357441059,-150.0,0.00020747,2]
[332619255,1721357441069,-150.0,0.00020749,2]
[332619257,1721357441078,-150.0,0.00020766,2]
[332619259,1721357441087,-150.0,0.00020768,2]
[332619260,1721357441099,-150.0,0.00020771,2]
[332619262,1721357441109,-150.0,0.00020771,2]
[332619264,1721357441118,-150.0,0.00020779,2]
[332619266,1721357441127,-150.0,0.00020784,2]
[332619268,1721357441138,-1500.0,0.00020785,2]
[332619270,1721357441147,-150.0,0.000208,2]
[332619272,1721357441157,-800.0,0.000208,7]
[332619274,1721357441167,-150.0,0.00020804,2]
[332619276,1721357441178,-1500.0,0.00020805,2]
[332619278,1721357441188,-150.0,0.00020808,2]
[332619280,1721357441197,-150.0,0.00020812,2]
[332619282,1721357441207,-1500.0,0.00020817,2]
[332619283,1721357441216,-191.14514012,0.00020818,2]
[332619285,1721357441226,-150.0,0.00020819,2]
[332619287,1721357441235,-500.0,0.00020831,2]
[332619289,1721357441244,-150.0,0.00020831,2]
[332619291,1721357441254,-500.0,0.00020832,2]
[332619293,1721357441263,-500.0,0.00020832,2]
[332619295,1721357441273,-200.0,0.00020832,2]
[332619296,1721357441283,-150.0,0.00020835,2]
[332619298,1721357441293,-150.0,0.00020835,2]
[332619300,1721357441303,-150.0,0.00020835,2]
[332619302,1721357441312,-150.0,0.00020839,2]
[332619305,1721357441322,-150.0,0.00020839,2]
[332619306,1721357441331,-150.0,0.00020844,2]
[332619307,1721357441342,-150.0,0.00020859,2]
[332619308,1721357441352,-150.0,0.00020859,2]
[332619309,1721357441361,-179.42159995,0.00020859,2]
[332619310,1721357441370,-150.0,0.00020864,2]
[332619311,1721357441379,-150.0,0.00020866,2]
[332619312,1721357441389,-150.0,0.00020866,2]
[332619313,1721357441399,-150.0,0.00020871,2]
[332619314,1721357441408,-150.0,0.00020874,2]
[332619315,1721357441417,-150.0,0.00020876,2]
[332619316,1721357441427,-150.0,0.00020881,2]
[332619317,1721357441436,-300.0,0.00020882,2]
[332619318,1721357441446,-150.0,0.00020885,2]
[332619319,1721357441456,-150.0,0.00020894,2]
[332619320,1721357441466,-196.10308055,0.00020897,2]
[332619321,1721357441475,-316.16369125,0.00020897,2]
[332619322,1721357441485,-196.10308055,0.00020899,2]
[332619323,1721357441494,-150.0,0.00020899,2]
[332619324,1721357441503,-150.0,0.00020899,2]
[332619325,1721357441513,-2179.17920581,0.000209,2]
[332619326,1721357441526,-1226.36379413,0.000209,2]
[332619327,1721357441535,-5000.0,0.000209,2]
[332619329,1721357441545,-7500.0,0.000209,2]
[332619331,1721357441556,-222.17631936,0.000209,2]
[332619333,1721357441565,-5800.0,0.000209,2]
[332619335,1721357441575,-176.47777742,0.000209,2]
[332619337,1721357441584,-1027.6203567,0.000209,2]
[332619339,1721357441594,-196.10308055,0.000209,2]
[332619341,1721357441603,-204.00431831,0.000209,2]
[332619343,1721357441613,-212.36960906,0.000209,2]
[332619344,1721357441622,-800.0,0.000209,7]
[332619346,1721357441632,-150.0,0.00020901,2]
[332619348,1721357441642,-150.0,0.00020904,2]
[332619350,1721357441651,-225.01,0.00020904,3]
[332619352,1721357441661,-150.0,0.00020912,2]
[332619354,1721357441670,-151.42302569,0.00020913,2]
[332619356,1721357441680,-150.0,0.00020913,2]
[332619358,1721357441689,-150.0,0.00020919,2]
[332619360,1721357441700,-150.0,0.00020923,2]
[332619362,1721357441710,-150.0,0.00020924,2]
[332619364,1721357441719,-156.08939053,0.00020926,2]
[332619366,1721357441728,-150.0,0.00020927,2]
[332619368,1721357441738,-1500.0,0.00020927,2]
[332619370,1721357441748,-150.0,0.00020928,2]
[332619372,1721357441757,-150.0,0.00020931,2]
[332619374,1721357441767,-1500.0,0.00020936,2]
[332619376,1721357441776,-150.0,0.00020939,2]
[332619378,1721357441786,-150.0,0.0002094,2]
[332619380,1721357441795,-150.0,0.00020941,2]
[332619382,1721357441804,-150.0,0.00020947,2]
[332619384,1721357441814,-157.071911,0.00020948,2]
[332619386,1721357441824,-157.071907,0.00020948,2]
[332619388,1721357441834,-157.071911,0.00020948,2]
[332619389,1721357441844,-157.071911,0.00020948,2]
[332619392,1721357441854,-157.071911,0.00020948,2]
[332619394,1721357441865,-701.0,0.0002095,15]
[332619396,1721357441874,-150.0,0.0002095,2]
[332619398,1721357441884,-150.0,0.0002095,2]
[332619400,1721357441895,-1518.16685034,0.0002095,2]
[332619402,1721357441905,-150.0,0.00020951,2]
[332619403,1721357441915,-356.57669143,0.00020953,2]
[332619405,1721357441925,-150.0,0.00020966,2]
[332619407,1721357441936,-150.0,0.00020967,2]
[332619409,1721357441946,-150.0,0.00020975,2]
[332619412,1721357441957,-150.0,0.00020976,2]
[332619413,1721357441967,-150.0,0.00020976,2]
[332619415,1721357441976,-198.39625256,0.0002098,2]
[332619417,1721357441985,-154.61,0.0002098,2]